fUST/lending_fUST_20240819
["ID","MTS","AMOUNT","RATE_DAILY","PERIOD"]
[335279638,1724064686947,-669.42,0.00019178,2]
[335279639,1724064686959,-563.42,0.00019178,2]
[335279640,1724064686969,-500.0,0.00019178,2]
[335279641,1724064686979,-174.06219201,0.00019178,2]
[335279642,1724064686991,-563.05,0.00019178,2]
[335279643,1724064687002,-500.0,0.00019178,2]
[335279644,1724064687012,-500.0,0.00019178,2]
[335279645,1724064687022,-500.0,0.00019178,2]
[335279646,1724064687033,-500.0,0.00019178,2]
[335279647,1724064687043,-1159.42,0.00019178,2]
[335279648,1724064687053,-1058.32,0.00019178,2]
[335279649,1724064687063,-500.0,0.00019178,2]
[335279650,1724064687073,-500.0,0.00019178,2]
[335279651,1724064687083,-835.22,0.00019178,2]
[335279652,1724064687093,-1036.0,0.00019178,2]
[335279653,1724064687102,-500.0,0.00019178,2]
[335279654,1724064687112,-500.0,0.00019178,2]
[335279655,1724064687121,-1629.15,0.00019178,2]
[335279656,1724064687131,-874.96,0.00019178,2]
[335279657,1724064687140,-714.72,0.00019178,2]
[335279658,1724064687150,-679.46,0.00019178,2]
[335279659,1724064687159,-650.75,0.00019178,2]
[335279660,1724064687170,-2792.23,0.00019178,2]
[335279661,1724064687180,-500.0,0.00019178,2]
[335279662,1724064687189,-500.0,0.00019178,2]
[335279663,1724064687200,-1304.87,0.00019178,2]
[335279664,1724064687210,-685.38,0.00019178,2]
[335279665,1724064687220,-999.6,0.00019178,2]
[335279666,1724064687231,-547.37,0.00019178,2]
[335279667,1724064687244,-500.0,0.00019178,2]
[335279668,1724064687254,-625.23,0.00019178,2]
[335279669,1724064687264,-500.0,0.00019178,2]
[335279670,1724064687275,-229.93492971,0.00019178,2]
[335279671,1724064687285,-500.0,0.00019178,2]
[335279672,1724064687296,-1241.89,0.00019178,2]
[335279673,1724064687306,-545.07,0.00019178,2]
[335279674,1724064687317,-407.90994654,0.00019178,2]
[335279675,1724064687328,-500.0,0.00019178,2]
[335279676,1724064687339,-500.0,0.00019178,2]
[335279677,1724064687350,-200.0,0.00019178,2]
[335279678,1724064687360,-1810.25,0.00019178,2]
[335279679,1724064687370,-1703.86,0.00019178,2]
[335279680,1724064687380,-1465.02,0.00019178,2]
[335279681,1724064687390,-548.12,0.00019178,2]
[335279682,1724064687401,-500.0,0.00019178,2]
[335279683,1724064687412,-500.0,0.00019178,2]
[335279684,1724064687423,-810.71,0.00019178,2]
[335279685,1724064687435,-2823.37,0.00019178,2]
[335279686,1724064687445,-500.0,0.00019178,2]
[335279687,1724064687456,-500.0,0.00019178,2]
[335279688,1724064687466,-500.0,0.00019178,2]
[335279689,1724064687477,-1950.34,0.00019178,2]
[335279690,1724064687488,-766.64,0.00019178,2]
[335279691,1724064687499,-1677.1,0.00019178,2]
[335279692,1724064687509,-611.4,0.00019178,2]
[335279693,1724064687520,-628.62,0.00019178,2]
[335279694,1724064687529,-312.1630556,0.00019178,2]
[335279695,1724064687541,-531.03,0.00019178,2]
[335279696,1724064687552,-500.0,0.00019178,2]
[335279697,1724064687563,-500.0,0.00019178,2]
[335279698,1724064687574,-1530.73,0.00019178,2]
[335279699,1724064687584,-754.52,0.00019178,2]
[335279700,1724064687596,-575.88,0.00019178,2]
[335279701,1724064687605,-955.98,0.00019178,2]
[335279702,1724064687615,-500.0,0.00019178,2]
[335279703,1724064687626,-574.44,0.00019178,2]
[335279704,1724064687635,-731.1,0.00019178,2]
[335279705,1724064687646,-500.0,0.00019178,2]
[335279706,1724064687656,-6498.62,0.00019178,2]
[335279707,1724064687667,-500.0,0.00019178,2]
[335279708,1724064687678,-500.0,0.00019178,2]
[335279709,1724064687689,-6412.2,0.00019178,2]
[335279710,1724064687699,-500.0,0.00019178,2]
[335279711,1724064687711,-1017.23,0.00019178,2]
[335279712,1724064687722,-500.0,0.00019178,2]
[335279713,1724064687731,-500.0,0.00019178,2]
[335279714,1724064687741,-1833.35,0.00019178,2]
[335279715,1724064687755,-551.2,0.00019178,2]
[335279716,1724064687765,-614.8175711,0.00019178,2]
[335279717,1724064687774,-500.0,0.00019178,2]
[335279718,1724064687783,-500.0,0.00019178,2]
[335279719,1724064687795,-322.69598581,0.00019178,2]
[335279720,1724064687804,-500.0,0.00019178,2]
[335279721,1724064687813,-500.0,0.00019178,2]
[335279722,1724064687823,-500.0,0.00019178,2]
[335279723,1724064687833,-500.0,0.00019178,2]
[335279724,1724064687844,-500.0,0.00019178,2]
[335279725,1724064687854,-500.0,0.00019178,2]
[335279726,1724064687864,-866.32,0.00019178,2]
[335279727,1724064687874,-1076.73,0.00019178,2]
[335279728,1724064687885,-552.95,0.00019178,2]
[335279729,1724064687894,-1738.28,0.00019178,2]
[335279730,1724064687904,-591.99,0.00019178,2]
[335279731,1724064687914,-556.23,0.00019178,2]
[335279732,1724064687923,-1070.93,0.00019178,2]
[335279733,1724064687933,-500.0,0.00019178,2]
[335279734,1724064687943,-500.0,0.00019178,2]
[335279735,1724064687952,-500.0,0.00019178,2]
[335279736,1724064687962,-1404.09,0.00019178,2]
[335279737,1724064687973,-527.24,0.00019178,2]
[335279738,1724064687984,-500.0,0.00019178,2]
[335279739,1724064687994,-4166.87,0.00019178,2]
[335279740,1724064688005,-549.76,0.00019178,2]
[335279741,1724064688015,-952.17,0.00019178,2]
[335279742,1724064688025,-523.47,0.00019178,2]
[335279743,1724064688035,-19615.05,0.00019178,2]
[335279744,1724064688045,-500.0,0.00019178,2]
[335279745,1724064688055,-1409.16,0.00019178,2]
[335279746,1724064688065,-967.54,0.00019178,2]
[335279747,1724064688075,-5418.3,0.00019178,2]
[335279748,1724064688085,-500.0,0.00019178,2]
[335279749,1724064688095,-500.0,0.00019178,2]
[335279750,1724064688104,-500.0,0.00019178,2]
[335279751,1724064688114,-3020.65,0.00019178,2]
[335279752,1724064688125,-2059.25,0.00019178,2]
[335279753,1724064688137,-6249.43,0.00019178,2]
[335279754,1724064688147,-1358.47,0.00019178,2]
[335279755,1724064688157,-1833.6,0.00019178,2]
[335279756,1724064688167,-695.24,0.00019178,2]
[335279757,1724064688176,-1406.0,0.00019178,2]
[335279758,1724064688186,-521.48,0.00019178,2]
[335279759,1724064688196,-1476.87,0.00019178,2]
[335279760,1724064688206,-1523.28,0.00019178,2]
[335279761,1724064688216,-500.0,0.00019178,2]
[335279762,1724064688225,-2266.85,0.00019178,2]
[335279763,1724064688235,-593.02920591,0.00019178,2]
[335279764,1724064688244,-171.51096693,0.00019178,2]
[335279765,1724064688254,-1215.95,0.00019178,2]
[335279766,1724064688263,-734.72,0.00019178,2]
[335279767,1724064688273,-474.49296195,0.00019178,2]
[335279768,1724064688283,-729.24,0.00019178,2]
[335279769,1724064688292,-2145.28,0.00019178,2]
[335279770,1724064688302,-500.0,0.00019178,2]
[335279771,1724064688313,-1474.66,0.00019178,2]
[335279772,1724064688323,-612.11,0.00019178,2]
[335279773,1724064688334,-2313.4,0.00019178,2]
[335279774,1724064688347,-1177.26,0.00019178,2]
[335279775,1724064688357,-573.54,0.00019178,2]
[335279776,1724064688367,-500.0,0.00019178,2]
[335279777,1724064688378,-500.0,0.00019178,2]
[335279778,1724064688389,-500.0,0.00019178,2]
[335279779,1724064688399,-500.0,0.00019178,2]
[335279780,1724064688410,-560.41,0.00019178,2]
[335279781,1724064688421,-2216.78,0.00019178,2]
[335279782,1724064688431,-1514.7,0.00019178,2]
[335279783,1724064688442,-835.68,0.00019178,2]
[335279784,1724064688452,-500.0,0.00019178,2]
[335279785,1724064688462,-3105.81,0.00019178,2]
[335279786,1724064688473,-595.88,0.00019178,2]
[335279787,1724064688483,-1084.05,0.00019178,2]
[335279788,1724064688493,-500.0,0.00019178,2]
[335279789,1724064688503,-3685.64,0.00019178,2]
[335279790,1724064688513,-500.0,0.00019178,2]
[335279791,1724064688522,-500.0,0.00019178,2]
[335279792,1724064688531,-500.0,0.00019178,2]
[335279793,1724064688540,-597.54,0.00019178,2]
[335279794,1724064688551,-500.0,0.00019178,2]
[335279795,1724064688561,-500.0,0.00019178,2]
[335279796,1724064688571,-500.0,0.00019178,2]
[335279797,1724064688581,-2913.53,0.00019178,2]
[335279798,1724064688590,-232.84883823,0.00019178,2]
[335279799,1724064688600,-500.0,0.00019178,2]
[335279800,1724064688609,-500.0,0.00019178,2]
[335279801,1724064688619,-500.0,0.00019178,2]
[335279802,1724064688628,-500.0,0.00019178,2]
[335279803,1724064688639,-1064.67,0.00019178,2]
[335279804,1724064688648,-1144.09,0.00019178,2]
[335279805,1724064688658,-1364.06,0.00019178,2]
[335279806,1724064688668,-500.0,0.00019178,2]
[335279807,1724064688679,-585.50664496,0.00019178,2]
[335279808,1724064688688,-251.0,0.00019178,2]
[335279809,1724064688698,-198.46866,0.00019178,2]
[335279810,1724064688709,-437.443624,0.00019178,2]
[335279811,1724064688719,-437.443624,0.00019178,2]
[335279812,1724064688729,-437.443624,0.00019178,2]
[335279813,1724064688738,-437.443624,0.00019178,2]
[335279814,1724064688750,-437.443624,0.00019178,2]
[335279815,1724064688764,-437.443624,0.00019178,2]
[335279816,1724064688773,-437.443624,0.00019178,2]
[335279817,1724064688783,-437.443624,0.00019178,2]
[335279818,1724064688792,-437.443624,0.00019178,2]
[335279819,1724064688803,-437.443624,0.00019178,2]
[335279820,1724064688812,-437.443624,0.00019178,2]
[335279821,1724064688821,-437.443624,0.00019178,2]
[335279822,1724064688833,-437.443624,0.00019178,2]
[335279823,1724064688845,-437.443624,0.00019178,2]
[335279824,1724064688862,-437.443624,0.00019178,2]
[335279825,1724064688872,-437.443624,0.00019178,2]
[335279826,1724064688882,-437.443624,0.00019178,2]
[335279827,1724064688892,-437.443624,0.00019178,2]
[335279828,1724064688901,-437.443624,0.00019178,2]
[335279829,1724064688910,-437.44363,0.00019178,2]
[335279830,1724064688920,-442.8722308,0.00019178,4]
[335279831,1724064688929,-841.58,0.000192,2]
[335279832,1724064688939,-10517.07,0.000192,2]
[335279833,1724064688949,-146482.29,0.000192,2]
[335279834,1724064688958,-589.133361,0.0001926,2]
[335279835,1724064688968,-150.0,0.00019324,2]
[335279836,1724064688978,-521.0,0.00019324,2]
[335279837,1724064688987,-1414.0,0.00019324,2]
[335279838,1724064688998,-4166.0,0.00019324,2]
[335279839,1724064689008,-4166.0,0.00019324,2]
[335279840,1724064689018,-190.0,0.00019436,2]
[335279841,1724064689028,-465.00176434,0.00019448,2]
[335279842,1724064689038,-999.1,0.00019452,2]
[335279843,1724064689048,-374.02600201,0.00019452,2]
[335279844,1724064689058,-635.16,0.00019452,2]
[335279845,1724064689067,-500.0,0.00019452,2]
[335279846,1724064689077,-591.86,0.00019452,2]
[335279847,1724064689086,-500.0,0.00019452,2]
[335279848,1724064689097,-500.0,0.00019452,2]
[335279849,1724064689107,-566.51,0.00019452,2]
[335279850,1724064689117,-500.0,0.00019452,2]
[335279851,1724064689244,-500.0,0.00019452,2]
[335279852,1724064689263,-500.0,0.00019452,2]
[335279853,1724064689273,-500.0,0.00019452,2]
[335279854,1724064689283,-500.0,0.00019452,2]
[335279855,1724064689293,-604.56,0.00019452,2]
[335279856,1724064689302,-1036.27,0.00019452,2]
[335279857,1724064689312,-876.01,0.00019452,2]
[335279858,1724064689325,-500.0,0.00019452,2]
[335279859,1724064689337,-920.14,0.00019452,2]
[335279860,1724064689349,-500.0,0.00019452,2]
[335279861,1724064689358,-924.92,0.00019452,2]
[335279862,1724064689368,-500.0,0.00019452,2]
[335279863,1724064689378,-500.0,0.00019452,2]
[335279864,1724064689387,-500.0,0.00019452,2]
[335279865,1724064689396,-884.77,0.00019452,2]
[335279866,1724064689406,-1525.26,0.00019452,2]
[335279867,1724064689416,-1240.07,0.00019452,2]
[335279868,1724064689426,-500.0,0.00019452,2]
[335279869,1724064689436,-531.9,0.00019452,2]
[335279870,1724064689446,-500.0,0.00019452,2]
[335279871,1724064689456,-670.44,0.00019452,2]
[335279872,1724064689465,-2085.01,0.00019452,2]
[335279873,1724064689475,-608.01,0.00019452,2]
[335279874,1724064689485,-972.73,0.00019452,2]
[335279875,1724064689495,-627.13,0.00019452,2]
[335279876,1724064689506,-549.6,0.00019452,2]
[335279877,1724064689518,-571.47,0.00019452,2]
[335279878,1724064689529,-500.0,0.00019452,2]
[335279879,1724064689539,-500.0,0.00019452,2]
[335279880,1724064689550,-509.54,0.00019452,2]
[335279881,1724064689560,-1192.27,0.00019452,2]
[335279882,1724064689570,-559.30085731,0.00019452,2]
[335279883,1724064689581,-500.0,0.00019452,2]
[335279884,1724064689591,-868.49,0.00019452,2]
[335279885,1724064689602,-833.76,0.00019452,2]
[335279886,1724064689611,-500.0,0.00019452,2]
[335279887,1724064689621,-541.44,0.00019452,2]
[335279888,1724064689630,-680.14,0.00019452,2]
[335279889,1724064689640,-677.35,0.00019452,2]
[335279890,1724064689650,-500.0,0.00019452,2]
[335279891,1724064689661,-1037.09,0.00019452,2]
[335279892,1724064689672,-764.95,0.00019452,2]
[335279893,1724064689683,-3205.11,0.00019452,2]
[335279894,1724064689693,-629.33,0.00019452,2]
[335279895,1724064689703,-500.0,0.00019452,2]
[335279896,1724064689714,-500.0,0.00019452,2]
[335279897,1724064689724,-500.0,0.00019452,2]
[335279898,1724064689734,-618.15,0.00019452,2]
[335279899,1724064689745,-788.89,0.00019452,2]
[335279900,1724064689759,-501.1,0.00019452,2]
[335279901,1724064689770,-500.35506163,0.00019452,2]
[335279902,1724064689781,-868.42,0.00019452,2]
[335279903,1724064689793,-945.19,0.00019452,2]
[335279904,1724064689802,-500.0,0.00019452,2]
[335279905,1724064689811,-924.86,0.00019452,2]
[335279906,1724064689821,-1050.73,0.00019452,2]
[335279907,1724064689832,-673.9,0.00019452,2]
[335279908,1724064689841,-571.61,0.00019452,2]
[335279909,1724064689853,-819.39,0.00019452,2]
[335279910,1724064689862,-513.12,0.00019452,2]
[335279911,1724064689871,-500.0,0.00019452,2]
[335279912,1724064689881,-500.0,0.00019452,2]
[335279913,1724064689891,-1257.31,0.00019452,2]
[335279914,1724064689900,-651.1,0.00019452,2]
[335279915,1724064689910,-510.49914556,0.00019452,2]
[335279916,1724064689919,-800.57,0.00019452,2]
[335279917,1724064689928,-643.17,0.00019452,2]
[335279918,1724064689937,-500.0,0.00019452,2]
[335279919,1724064689947,-500.0,0.00019452,2]
[335279920,1724064689957,-891.67,0.00019452,2]
[335279921,1724064689968,-500.0,0.00019452,2]
[335279922,1724064689977,-734.44,0.00019452,2]
[335279923,1724064689987,-500.0,0.00019452,2]
[335279924,1724064689997,-500.0,0.00019452,2]
[335279925,1724064690007,-596.48,0.00019452,2]
[335279926,1724064690017,-991.23,0.00019452,2]
[335279927,1724064690027,-975.86,0.00019452,2]
[335279928,1724064690037,-519.5082307,0.00019452,2]
[335279929,1724064690046,-500.0,0.00019452,2]
[335279930,1724064690056,-1381.03,0.00019452,2]
[335279931,1724064690066,-500.0,0.00019452,2]
[335279932,1724064690076,-502.85,0.00019452,2]
[335279933,1724064690089,-500.0,0.00019452,2]
[335279934,1724064690101,-530.34,0.00019452,2]
[335279935,1724064690111,-704.69,0.00019452,2]
[335279936,1724064690121,-883.26,0.00019452,2]
[335279937,1724064690130,-652.07,0.00019452,2]
[335279938,1724064690140,-613.05,0.00019452,2]
[335279939,1724064690150,-500.0,0.00019452,2]
[335279940,1724064690160,-500.0,0.00019452,2]
[335279941,1724064690169,-644.74,0.00019452,2]
[335279942,1724064690179,-500.0,0.00019452,2]
[335279943,1724064690190,-500.0,0.00019452,2]
[335279944,1724064690203,-500.0,0.00019452,2]
[335279945,1724064690215,-500.0,0.00019452,2]
[335279946,1724064690225,-408.46283876,0.00019452,2]
[335279947,1724064690236,-500.0,0.00019452,2]
[335279948,1724064690247,-500.0,0.00019452,2]
[335279949,1724064690258,-500.0,0.00019452,2]
[335279950,1724064690268,-627.32,0.00019452,2]
[335279951,1724064690278,-768.77,0.00019452,2]
[335279952,1724064690288,-1030.7,0.00019452,2]
[335279953,1724064690298,-751.5,0.00019452,2]
[335279954,1724064690308,-647.7771661,0.00019452,2]
[335279955,1724064690317,-669.42,0.00019452,2]
[335279956,1724064690327,-563.42,0.00019452,2]
[335279957,1724064690336,-500.0,0.00019452,2]
[335279958,1724064690347,-563.05,0.00019452,2]
[335279959,1724064690357,-500.0,0.00019452,2]
[335279960,1724064690366,-500.0,0.00019452,2]
[335279961,1724064690376,-500.0,0.00019452,2]
[335279962,1724064690385,-500.0,0.00019452,2]
[335279963,1724064690400,-1159.42,0.00019452,2]
[335279964,1724064690419,-1058.32,0.00019452,2]
[335279965,1724064690435,-500.0,0.00019452,2]
[335279966,1724064690450,-500.0,0.00019452,2]
[335279967,1724064690466,-835.22,0.00019452,2]
[335279968,1724064690483,-1036.0,0.00019452,2]
[335279969,1724064690501,-500.0,0.00019452,2]
[335279970,1724064690516,-500.0,0.00019452,2]
[335279971,1724064690533,-1629.15,0.00019452,2]
[335279972,1724064690550,-874.96,0.00019452,2]
[335279973,1724064690562,-714.72,0.00019452,2]
[335279974,1724064690577,-679.46,0.00019452,2]
[335279975,1724064690595,-650.75,0.00019452,2]
[335279976,1724064690612,-2792.23,0.00019452,2]
[335279977,1724064690630,-500.0,0.00019452,2]
[335279978,1724064690643,-500.0,0.00019452,2]
[335279979,1724064690656,-1304.87,0.00019452,2]
[335279980,1724064690673,-685.38,0.00019452,2]
[335279981,1724064690687,-999.6,0.00019452,2]
[335279982,1724064690702,-547.37,0.00019452,2]
[335279983,1724064690719,-500.0,0.00019452,2]
[335279984,1724064690731,-625.23,0.00019452,2]
[335279985,1724064690747,-500.0,0.00019452,2]
[335279986,1724064690764,-500.0,0.00019452,2]
[335279987,1724064690779,-1241.89,0.00019452,2]
[335279988,1724064690792,-545.07,0.00019452,2]
[335279989,1724064690805,-500.0,0.00019452,2]
[335279990,1724064690818,-500.0,0.00019452,2]
[335279991,1724064690833,-200.0,0.00019452,2]
[335279992,1724064690849,-1810.25,0.00019452,2]
[335279993,1724064690863,-1703.86,0.00019452,2]
[335279994,1724064690875,-1465.02,0.00019452,2]
[335279995,1724064690888,-548.12,0.00019452,2]
[335279996,1724064690901,-500.0,0.00019452,2]
[335279997,1724064690915,-500.0,0.00019452,2]
[335279998,1724064690932,-810.71,0.00019452,2]
[335279999,1724064690948,-2823.37,0.00019452,2]
[335280000,1724064690963,-500.0,0.00019452,2]
[335280001,1724064690978,-500.0,0.00019452,2]
[335280002,1724064690991,-500.0,0.00019452,2]
[335280003,1724064691004,-1950.34,0.00019452,2]
[335280004,1724064691016,-766.64,0.00019452,2]
[335280005,1724064691029,-1677.1,0.00019452,2]
[335280006,1724064691041,-611.4,0.00019452,2]
[335280007,1724064691053,-628.62,0.00019452,2]
[335280008,1724064691066,-531.03,0.00019452,2]
[335280009,1724064691079,-500.0,0.00019452,2]
[335280010,1724064691092,-500.0,0.00019452,2]
[335280011,1724064691106,-1530.73,0.00019452,2]
[335280012,1724064691119,-754.52,0.00019452,2]
[335280013,1724064691132,-575.88,0.00019452,2]
[335280014,1724064691144,-955.98,0.00019452,2]
[335280015,1724064691158,-500.0,0.00019452,2]
[335280016,1724064691171,-574.44,0.00019452,2]
[335280017,1724064691184,-731.1,0.00019452,2]
[335280018,1724064691197,-500.0,0.00019452,2]
[335280019,1724064691210,-6498.62,0.00019452,2]
[335280020,1724064691224,-500.0,0.00019452,2]
[335280021,1724064691238,-500.0,0.00019452,2]
[335280022,1724064691250,-6412.2,0.00019452,2]
[335280023,1724064691264,-500.0,0.00019452,2]
[335280024,1724064691277,-1017.23,0.00019452,2]
[335280025,1724064691289,-500.0,0.00019452,2]
[335280026,1724064691304,-500.0,0.00019452,2]
[335280027,1724064691317,-1833.35,0.00019452,2]
[335280028,1724064691329,-551.2,0.00019452,2]
[335280029,1724064691342,-500.0,0.00019452,2]
[335280030,1724064691356,-500.0,0.00019452,2]
[335280031,1724064691369,-866.32,0.00019452,2]
[335280032,1724064691380,-1076.73,0.00019452,2]
[335280033,1724064691393,-552.95,0.00019452,2]
[335280034,1724064691406,-1738.28,0.00019452,2]
[335280035,1724064691418,-591.99,0.00019452,2]
[335280036,1724064691431,-556.23,0.00019452,2]
[335280037,1724064691443,-1070.93,0.00019452,2]
[335280038,1724064691456,-500.0,0.00019452,2]
[335280039,1724064691469,-500.0,0.00019452,2]
[335280040,1724064691484,-500.0,0.00019452,2]
[335280041,1724064691497,-1404.09,0.00019452,2]
[335280042,1724064691510,-527.24,0.00019452,2]
[335280043,1724064691523,-410.24252774,0.00019452,2]
[335280044,1724064691535,-4166.87,0.00019452,2]
[335280045,1724064691548,-549.76,0.00019452,2]
[335280046,1724064691561,-952.17,0.00019452,2]
[335280047,1724064691574,-523.47,0.00019452,2]
[335280048,1724064691588,-19615.05,0.00019452,2]
[335280049,1724064691600,-500.0,0.00019452,2]
[335280050,1724064691612,-967.54,0.00019452,2]
[335280051,1724064691624,-1409.16,0.00019452,2]
[335280052,1724064691637,-5418.3,0.00019452,2]
[335280053,1724064691649,-500.0,0.00019452,2]
[335280054,1724064691662,-500.0,0.00019452,2]
[335280055,1724064691674,-500.0,0.00019452,2]
[335280056,1724064691686,-3020.65,0.00019452,2]
[335280057,1724064691698,-2059.25,0.00019452,2]
[335280058,1724064691711,-6249.43,0.00019452,2]
[335280059,1724064691723,-1833.6,0.00019452,2]
[335280060,1724064691735,-1358.47,0.00019452,2]
[335280061,1724064691749,-695.24,0.00019452,2]
[335280062,1724064691763,-1406.0,0.00019452,2]
[335280063,1724064691775,-521.48,0.00019452,2]
[335280064,1724064691788,-1476.87,0.00019452,2]
[335280065,1724064691802,-1523.28,0.00019452,2]
[335280066,1724064691815,-500.0,0.00019452,2]
[335280067,1724064691828,-2266.85,0.00019452,2]
[335280068,1724064691841,-1215.95,0.00019452,2]
[335280069,1724064691854,-734.72,0.00019452,2]
[335280070,1724064691866,-2145.28,0.00019452,2]
[335280071,1724064691878,-729.24,0.00019452,2]
[335280072,1724064691892,-500.0,0.00019452,2]
[335280073,1724064691904,-1474.66,0.00019452,2]
[335280074,1724064691917,-612.11,0.00019452,2]
[335280075,1724064692140,-2313.4,0.00019452,2]
[335280076,1724064692150,-1177.26,0.00019452,2]
[335280077,1724064692160,-573.54,0.00019452,2]
[335280078,1724064692169,-500.0,0.00019452,2]
[335280079,1724064692179,-500.0,0.00019452,2]
[335280080,1724064692189,-500.0,0.00019452,2]
[335280081,1724064692198,-560.41,0.00019452,2]
[335280082,1724064692207,-2216.78,0.00019452,2]
[335280083,1724064692217,-1514.7,0.00019452,2]
[335280084,1724064692226,-835.68,0.00019452,2]
[335280085,1724064692235,-500.0,0.00019452,2]
[335280086,1724064692245,-3105.81,0.00019452,2]
[335280087,1724064692254,-595.88,0.00019452,2]
[335280088,1724064692263,-1084.05,0.00019452,2]
[335280089,1724064692273,-500.0,0.00019452,2]
[335280090,1724064692283,-3685.64,0.00019452,2]
[335280091,1724064692292,-597.54,0.00019452,2]
[335280092,1724064692301,-2913.53,0.00019452,2]
[335280093,1724064692311,-1064.67,0.00019452,2]
[335280094,1724064692321,-1144.09,0.00019452,2]
[335280095,1724064692330,-214.0,0.000195,10]
[335280096,1724064692340,-1000.0,0.000195,2]
[335280097,1724064692349,-3900.0,0.00019518,2]
[335280098,1724064692359,-1300.0,0.00019558,2]
[335280099,1724064692368,-5000.0,0.00019582,2]
[335280100,1724064692378,-999.1,0.00019726,2]
[335280101,1724064692387,-635.16,0.00019726,2]
[335280102,1724064692396,-500.0,0.00019726,2]
[335280103,1724064692407,-591.86,0.00019726,2]
[335280104,1724064692416,-500.0,0.00019726,2]
[335280105,1724064692425,-500.0,0.00019726,2]
[335280106,1724064692435,-566.51,0.00019726,2]
[335280107,1724064692445,-500.0,0.00019726,2]
[335280108,1724064692455,-500.0,0.00019726,2]
[335280109,1724064692464,-500.0,0.00019726,2]
[335280110,1724064692473,-500.0,0.00019726,2]
[335280111,1724064692482,-604.56,0.00019726,2]
[335280112,1724064692492,-1036.27,0.00019726,2]
[335280113,1724064692502,-876.01,0.00019726,2]
[335280114,1724064692511,-475.03363323,0.00019726,2]
[335280115,1724064692521,-920.14,0.00019726,2]
[335280116,1724064692531,-500.0,0.00019726,2]
[335280117,1724064692541,-924.92,0.00019726,2]
[335280118,1724064692550,-500.0,0.00019726,2]
[335280119,1724064692559,-500.0,0.00019726,2]
[335280120,1724064692569,-500.0,0.00019726,2]
[335280121,1724064692578,-884.77,0.00019726,2]
[335280122,1724064692588,-1525.26,0.00019726,2]
[335280123,1724064692599,-1240.07,0.00019726,2]
[335280124,1724064692609,-500.0,0.00019726,2]
[335280125,1724064692618,-531.9,0.00019726,2]
[335280126,1724064692628,-634.50320716,0.00019726,2]
[335280127,1724064692637,-670.44,0.00019726,2]
[335280128,1724064692648,-2085.01,0.00019726,2]
[335280129,1724064692660,-608.01,0.00019726,2]
[335280130,1724064692670,-972.73,0.00019726,2]
[335280131,1724064692680,-627.13,0.00019726,2]
[335280132,1724064692689,-549.6,0.00019726,2]
[335280133,1724064692698,-571.47,0.00019726,2]
[335280134,1724064692707,-500.0,0.00019726,2]
[335280135,1724064692716,-500.0,0.00019726,2]
[335280136,1724064692726,-509.54,0.00019726,2]
[335280137,1724064692736,-1192.27,0.00019726,2]